{"text_format":"1","workbook":"xlsx","n_sheets":4,"sheets":["A lire !","Candidature","Corps","Liste"],"not_rendered":{"charts":0,"images":3,"macros":0,"external_links":0,"defined_names":5,"comments":0,"pivot_tables":0},"unopened":[],"bounds":{"document_bytes":16777216,"sheet_cells":100000,"rows_first":2000,"rows_last":500,"rows_between":2000,"halvings":0,"cell_chars":16384,"cell_head_chars":4096},"cells_cut":0,"cells_raw":0,"read":"whole","date_system":"1900"}

{"sheet":"A lire !","index":0,"n_rows":3,"n_cols":1,"rows_kept":3,"cut":false,"hidden":false,"merged":[]}
["Vous venez d'identifier un logement sur la Liste des Logements immédiatement Disponibles (LLD) et vous souhaitez vous positionner sur un ou deux logements (maximum) de cette liste. \"UNE SEULE CANDIDATURE POSSIBLE PAR MISE A JOUR DE LA LISTE\" \nET \"DEUX REFUS AUTORISES SUR 12 MOIS A COMPTER DU 1er REFUS ENREGISTRE\""]
["Avant de candidater, vérifier vos droits à l'aide du simulateur de plafond social. \"Trop de demandes ne sont pas recevables\"\n(typologie supérieure au droit social, plafond social non respecté, ressources insuffisantes ou dépassées, non affecté au MINARM)\n\nVous pouvez candidater en utilisant ce formulaire selon deux cas :\n\nPremier cas, vous avez un dossier enregistré à l'ETL-IDF : indiquez uniquement votre numéro de demande, votre nom, la référence du(es) logement(s) et si nécessaire renseigner la case « Observation(s) »\nSecond cas, vous n'avez pas de dossier enregistré à l'ETL-IDF : n'inscrivez rien dans la case \"Numéro client\" et renseignez tous les champs requis. \nDans tous les cas : transmettez par mail la fiche de candidature complétée en cliquant sur \"Valider le formulaire\". A la réception de votre demande, le bureau en charge des propositions va vérifier si vous pouvez effectivement candidater sur le(s) logement(s) présélectionné(s). Vous disposez également, sur le site SGA Connect, d'un simulateur de plafond social pour vérifier vos droits et les logements sur lesquels vous pouvez candidater.\n\nAprès contrôle de votre demande, il existe deux possibilités :\n\nPremière possibilité, vous remplissez les conditions (typologie, plafond, ressources) pour candidater : vous recevrez une proposition de logement parmi vos choix.\nSeconde possibilité, vous ne remplissez pas les conditions (typologie, plafond, ressources) pour candidater : vous recevez un mail pour vous signifier le motif de rejet.\n\nIMPORTANT : si vous acceptez la proposition :\n\n1 - Vous êtes enregistrés à l'ETL-IDF  : un bon de viste vous sera transmis par le bias du portail logement à partir de votre espace demandeur.\n     \n\n2 - Vous n'êtes pas enregistré à l'ETL-IDF : vous renvoyez le bon de visite, daté et signé par mail à dpma-etl-idf.coordinateur.fct@intradef.gouv.fr.\n La date de réception de votre mail faisant foi, vous disposerez alors de 7 jours pour déposer votre demande de logement en vous rendant dans l'espace demandeur du portail https://logement.intradef.gouv.fr\n"]
["https://logement.intradef.gouv.fr"]

{"sheet":"Candidature","index":1,"n_rows":26,"n_cols":5,"rows_kept":26,"cut":false,"hidden":false,"merged":[[0,1,1,2],[5,4,12,9],[24,1,29,2],[23,1,23,2]]}
[null,"FICHE DE CANDIDATURE LLD",null,{"$f":"TODAY()","v":"2024-03-04"}]
[null,null,null,{"$f":"YEAR(D1)","v":2024}]
[null,null,null,{"$f":"MONTH(D1)","v":3}]
[null,"Transmettre ce document à l'adresse suivante :","dpma-etl-idf.coordinateur.fct@intradef.gouv.fr"]
[null,null,null,{"$f":"IF(C7>0,1,0)","v":0}]
[null,{"$f":"IF(C6>0,\"Votre numéro implique que vous ayez un dossier enregistré et actif de moins d'un an\",\"Numéro de demande (si saisie à l'ETL-IDF)\")","v":"Numéro de demande (si saisie à l'ETL-IDF)"},null,{"$f":"IF(C6=0,0,IF(C6>0,1,2))","v":0},"\nIMPORTANT\n\nVeuillez ouvrir le fichier de candidature LLD sans le télécharger depuis le site SGA-Connect.  Vous renseignez les éléments demandés puis vous cliquez sur VALIDER LE FORMULAIRE pour lancer la création automatique du mail et \nsa pièce jointe\n\nEN CAS DE DYSFONCTIONNEMENT\nCliquer sur l’icône du scanner pour créer le document \"au format PDF\"  \nsur votre répertoire       C :\\temp. \n\nIl ne vous reste plus qu’à nous l’adresser en pièce jointe de votre demande\n\n"]
[null,"Civilité",null,{"$f":"IF(C8>0,1,0)","v":0}]
[null,"Nom",null,{"$f":"IF(C9>0,1,0)","v":0}]
[null,"Prénom",null,0]
[null,"Situation familiale",null,0]
[null,{"$f":"IF(OR(C11=\"Agent civil contractuel\",C11=\"Militaire sous contrat\",),\"Obligatoire : indiquer la durée et la fin de votre contrat en case observation\",\"Statut\")","v":"Statut"},null,0]
[null,"Affectation"]
[null,"Nombre de personnes à charge (hors DVH et naissance(s) à venir, à préciser en observation)",null,0]
[null,"Etes-vous propriétaire ? (si oui, merci de donner des précisions en observation)",null,0]
[null,"Adresse courriel personnelle (merci de respecter les minuscules, majuscules et caractères spéciaux)",null,{"$f":"IF(C17>0,1,0)","v":0}]
[null,"Numéro de téléphone portable",null,{"$f":"IF(C18>0,1,0)","v":0}]
[null,"Revenu fiscal de référence 2023 sur les revenus 2022 (à cumuler si candidature en couple)",null,{"$f":"SUM(D7:D16)+D5+D19","v":0}]
[null,"Revenu(s) net(s) mensuel(s) avant impôt (à cumuler si candidature en couple)",null,{"$f":"AdresseEmailValide(C15)","v":{"$error":"#NAME?"}}]
[null,null,null,{"$f":"IF(B21>0,1,0)","v":0}]
[null,"RÉFÉRENCE(S) DU(DES) LOGEMENT(S) SOUHAITÉ(S) DE LA LLD (2 MAXIMUM)",null,{"$f":"IF(B22>0,1,0)","v":0}]
[null,null,null,{"$f":"SUM(D19+D6+D8)","v":0}]
[]
[null,{"$f":"IF(D3=11,\"Observation(s)\",\"\")","v":""},null,{"$f":"IF(B25>0,1,0)","v":1}]
[null,{"$f":"IF(D3=11,\"Revenu fiscal de référence\"&\" \"&D2-2&\" \"&\"déclaré en\"&\" \"&D2-1&\" à indiquer ci-dessous\",\"Observation(s)\")","v":"Observation(s)"},null,{"$f":"IF(AND(C14=\"Oui\",B25=0),1,0)","v":0}]
[null,"Date de fin de contrat:\n\nNombre d'enfants en droits de visite et d'hébergement:\n\nNombre d'enfants à naître et DPA:\n\nSi propriétaire:\n- Ville de la propriété:\n- Superficie de la propriété:\n\nAutres observations:",null,{"$f":"SUM(D5:D16)+D19","v":0}]
[null,null,null,{"$f":"IF(C14=\"Oui\",1,0)","v":0}]

{"sheet":"Corps","index":2,"n_rows":8,"n_cols":1,"rows_kept":8,"cut":false,"hidden":true,"merged":[]}
[]
["Bonjour,\nVeuillez trouver en pièce jointe ma fiche de candidature à la LLD.\n\nCordialement"]
[]
[]
[]
[]
["Oui"]
["Non"]

{"sheet":"Liste","index":3,"n_rows":11,"n_cols":7,"rows_kept":11,"cut":false,"hidden":true,"merged":[]}
[]
["Célibataire",null,"Agent civil contractuel",null,"Contractuel",null,"Madame"]
["Célibataire géographique",null,"Fonctionnaire stagiaire",null,"Fonctionnaire stagiaire",null,"Monsieur"]
["Divorcé(e) ou séparé(e)",null,"Fonctionnaire titulaire",null,"Fonctionnaire Cat A"]
["Marié(e)",null,"Militaire de carrière",null,"Fonctionnaire Cat B"]
["Pacsé(e)",null,"Militaire sous contrat",null,"Fonctionnaire Cat C"]
["Veuf(ve)",null,null,null,"Fonctionnaire Hors Classe"]
["Vie maritale",null,null,null,"Général"]
[null,null,null,null,"Militaire du rang"]
[null,null,null,null,"Officier"]
[null,null,null,null,"Sous-officier"]